[Event "Late-Titled-Tuesday-Blitz-October-17-2023"]
[Site "Chess.com"]
[Date "2023.10.17"]
[Round "8"]
[White "LaPiToB"]
[Black "familijatop71"]
[Result "0-1"]
[WhiteElo "2289"]
[BlackElo "2140"]
[TimeControl "180+1"]
[EndTime "15:25:16 PDT"]
[Termination "familijatop71 won by resignation"]

1. c4 {[%clk 0:02:56.7]} 1... Nf6 {[%clk 0:02:59.4]} 2. Nc3 {[%clk 0:02:56.7]}
2... g6 {[%clk 0:02:59.3]} 3. g3 {[%clk 0:02:56.9]} 3... Bg7 {[%clk 0:02:59.6]}
4. Bg2 {[%clk 0:02:57.6]} 4... O-O {[%clk 0:02:59.7]} 5. e4 {[%clk 0:02:56.8]}
5... d6 {[%clk 0:02:59.2]} 6. Nge2 {[%clk 0:02:53.8]} 6... c5 {[%clk 0:02:58.3]}
7. O-O {[%clk 0:02:50.6]} 7... Nc6 {[%clk 0:02:57.7]} 8. d3 {[%clk 0:02:50.2]}
8... Rb8 {[%clk 0:02:55.7]} 9. a4 {[%clk 0:02:48.5]} 9... a6 {[%clk 0:02:55.7]}
10. h3 {[%clk 0:02:48.6]} 10... h6 {[%clk 0:02:43.7]} 11. Be3 {[%clk 0:02:46.4]}
11... Kh7 {[%clk 0:02:43.3]} 12. f4 {[%clk 0:02:41.5]} 12... e5 {[%clk
0:02:40.7]} 13. f5 {[%clk 0:02:40.8]} 13... g5 {[%clk 0:02:29.8]} 14. g4 {[%clk
0:02:37.6]} 14... Nd4 {[%clk 0:02:22.2]} 15. Ng3 {[%clk 0:02:29]} 15... Bd7
{[%clk 0:02:13.6]} 16. Rb1 {[%clk 0:02:08.7]} 16... b5 {[%clk 0:02:10.7]} 17.
axb5 {[%clk 0:02:06.4]} 17... axb5 {[%clk 0:02:09.1]} 18. cxb5 {[%clk 0:02:05]}
18... Nxb5 {[%clk 0:02:03.3]} 19. Nxb5 {[%clk 0:02:03.8]} 19... Rxb5 {[%clk
0:01:57.7]} 20. Qd2 {[%clk 0:02:03.6]} 20... Qb6 {[%clk 0:01:53.7]} 21. Rf2
{[%clk 0:01:58.9]} 21... Ra8 {[%clk 0:01:45]} 22. Nh5 {[%clk 0:01:55.8]} 22...
Nxh5 {[%clk 0:01:43.7]} 23. gxh5 {[%clk 0:01:56.7]} 23... f6 {[%clk 0:01:40.3]}
24. h4 {[%clk 0:01:55.1]} 24... Qd8 {[%clk 0:01:28.1]} 25. hxg5 {[%clk
0:01:52.7]} 25... hxg5 {[%clk 0:01:28.2]} 26. Rbf1 {[%clk 0:01:39]} 26... Bh6
{[%clk 0:01:26.1]} 27. Qc2 {[%clk 0:01:32.7]} 27... Qg8 {[%clk 0:01:10.9]} 28.
Bc1 {[%clk 0:01:30.2]} 28... Be8 {[%clk 0:01:08.1]} 29. Bf3 {[%clk 0:01:19.7]}
29... Bf7 {[%clk 0:01:06.3]} 30. Rh2 {[%clk 0:01:13.4]} 30... Rab8 {[%clk
0:01:05.7]} 31. Qa4 {[%clk 0:01:06]} 31... g4 {[%clk 0:00:59]} 32. Bd1 {[%clk
0:00:53.4]} 32... Bxc1 {[%clk 0:00:54]} 33. Rg2 {[%clk 0:00:41.3]} 33... Be3+
{[%clk 0:00:43.5]} 34. Kh1 {[%clk 0:00:40]} 34... g3 {[%clk 0:00:39.8]} 35. Rf3
{[%clk 0:00:28.1]} 35... Bf4 {[%clk 0:00:36.3]} 36. Qa7 {[%clk 0:00:24]} 36...
R8b7 {[%clk 0:00:35.4]} 37. Qa6 {[%clk 0:00:21.4]} 37... Qg4 {[%clk 0:00:29.7]}
38. Rf1 {[%clk 0:00:19.1]} 38... Qh3+ {[%clk 0:00:29]} 39. Kg1 {[%clk
0:00:13.8]} 39... Be3+ {[%clk 0:00:29.1]} 40. Rff2 {[%clk 0:00:14.1]} 40...
gxf2+ {[%clk 0:00:28.3]} 41. Kf1 {[%clk 0:00:14.4]} 41... Qh1+ {[%clk 0:00:28]}
42. Ke2 {[%clk 0:00:14.9]} 42... f1=Q+ {[%clk 0:00:27.3]} 43. Kxe3 {[%clk
0:00:15.3]} 43... Qhxg2 {[%clk 0:00:27.4]} 0-1

[Event "Late-Titled-Tuesday-Blitz-October-17-2023"]
[Site "Chess.com"]
[Date "2023.10.17"]
[Round "8"]
[White "Beca95"]
[Black "FabianoCaruana"]
[Result "0-1"]
[WhiteElo "2934"]
[BlackElo "3116"]
[TimeControl "180+1"]
[EndTime "15:25:18 PDT"]
[Termination "FabianoCaruana won by resignation"]

1. d4 {[%clk 0:03:00.9]} 1... Nf6 {[%clk 0:03:00]} 2. c4 {[%clk 0:03:01]} 2...
e6 {[%clk 0:03:00.5]} 3. Nc3 {[%clk 0:03:01.3]} 3... Bb4 {[%clk 0:03:01.2]} 4.
Qc2 {[%clk 0:03:01.3]} 4... d5 {[%clk 0:03:00.6]} 5. a3 {[%clk 0:02:58.9]} 5...
Bxc3+ {[%clk 0:03:00.6]} 6. Qxc3 {[%clk 0:02:59.8]} 6... O-O {[%clk 0:03:00.9]}
7. Nf3 {[%clk 0:02:59.5]} 7... Nbd7 {[%clk 0:03:01.3]} 8. Bg5 {[%clk 0:02:56.9]}
8... h6 {[%clk 0:03:01.4]} 9. Bh4 {[%clk 0:02:56.4]} 9... b6 {[%clk 0:03:01.7]}
10. cxd5 {[%clk 0:02:55.8]} 10... exd5 {[%clk 0:03:01.7]} 11. e3 {[%clk
0:02:56.5]} 11... c5 {[%clk 0:03:01.1]} 12. Bb5 {[%clk 0:02:55.8]} 12... g5
{[%clk 0:02:56.2]} 13. Bg3 {[%clk 0:02:55]} 13... Ne4 {[%clk 0:02:56.5]} 14. Qc2
{[%clk 0:02:43.4]} 14... Bb7 {[%clk 0:02:55.7]} 15. Ne5 {[%clk 0:02:35.8]} 15...
Nxe5 {[%clk 0:02:50.6]} 16. Bxe5 {[%clk 0:02:35.4]} 16... Rc8 {[%clk 0:02:49.8]}
17. dxc5 {[%clk 0:02:17.8]} 17... bxc5 {[%clk 0:02:40.5]} 18. Bd3 {[%clk
0:02:17.6]} 18... Re8 {[%clk 0:02:28.5]} 19. Bxe4 {[%clk 0:02:09.8]} 19... Rxe5
{[%clk 0:02:28.5]} 20. Bf3 {[%clk 0:02:07.8]} 20... Ba6 {[%clk 0:02:17.6]} 21.
O-O-O {[%clk 0:01:57.7]} 21... d4 {[%clk 0:02:17.7]} 22. h4 {[%clk 0:01:57.9]}
22... Qf6 {[%clk 0:02:02.6]} 23. hxg5 {[%clk 0:01:52.4]} 23... Rxg5 {[%clk
0:02:03.5]} 24. Kb1 {[%clk 0:01:47.1]} 24... d3 {[%clk 0:01:59.1]} 25. Qc3
{[%clk 0:01:24]} 25... Qxc3 {[%clk 0:01:58.8]} 26. bxc3 {[%clk 0:01:24.9]} 26...
Rb8+ {[%clk 0:01:59.4]} 27. Ka1 {[%clk 0:01:25.4]} 27... Rb3 {[%clk 0:01:44.2]}
28. Rxh6 {[%clk 0:01:24]} 28... Bc4 {[%clk 0:01:44]} 29. Rh4 {[%clk 0:01:22.6]}
29... Rxa3+ {[%clk 0:01:43.6]} 30. Kb1 {[%clk 0:01:16.1]} 30... Rb3+ {[%clk
0:01:41.6]} 31. Ka1 {[%clk 0:00:56.3]} 31... Rg6 {[%clk 0:01:39.8]} 32. Rg4
{[%clk 0:00:51.4]} 32... Rxg4 {[%clk 0:01:39.9]} 33. Bxg4 {[%clk 0:00:52.3]}
33... Rxc3 {[%clk 0:01:38.4]} 34. Rd2 {[%clk 0:00:52.5]} 34... a5 {[%clk
0:01:33.9]} 35. Bd1 {[%clk 0:00:47.7]} 35... Ra3+ {[%clk 0:01:24.1]} 36. Kb1
{[%clk 0:00:47.9]} 36... a4 {[%clk 0:01:19.2]} 37. e4 {[%clk 0:00:39.1]} 37...
Bb3 {[%clk 0:01:00.3]} 38. Rxd3 {[%clk 0:00:32.6]} 38... Ba2+ {[%clk 0:00:59.6]}
39. Kc2 {[%clk 0:00:33.1]} 39... Bb1+ {[%clk 0:01:00.3]} 40. Kxb1 {[%clk
0:00:33.5]} 40... Rxd3 {[%clk 0:01:00.9]} 41. Bxa4 {[%clk 0:00:33.9]} 41... Rd2
{[%clk 0:01:00.4]} 42. f4 {[%clk 0:00:33.1]} 42... Rxg2 {[%clk 0:01:00.5]} 43.
Bc2 {[%clk 0:00:30.8]} 43... Rf2 {[%clk 0:00:59.6]} 44. f5 {[%clk 0:00:30.7]}
44... f6 {[%clk 0:01:00]} 45. Kb2 {[%clk 0:00:30.3]} 45... Kg7 {[%clk
0:00:59.2]} 46. Kc3 {[%clk 0:00:30.7]} 46... Kh6 {[%clk 0:00:59.4]} 47. Ba4
{[%clk 0:00:28.7]} 47... Kg5 {[%clk 0:00:59.2]} 48. Kc4 {[%clk 0:00:28.8]} 48...
Kf4 {[%clk 0:00:59.5]} 49. Kd5 {[%clk 0:00:28.2]} 49... c4 {[%clk 0:00:50.1]}
50. e5 {[%clk 0:00:26.3]} 50... fxe5 {[%clk 0:00:45.1]} 51. f6 {[%clk 0:00:20]}
51... e4 {[%clk 0:00:44.2]} 52. f7 {[%clk 0:00:09.3]} 52... Ke3 {[%clk
0:00:44.2]} 53. Ke6 {[%clk 0:00:07.1]} 53... c3 {[%clk 0:00:43.5]} 54. Ke7
{[%clk 0:00:06.8]} 54... Kd2 {[%clk 0:00:42.7]} 0-1

[Event "Late-Titled-Tuesday-Blitz-October-17-2023"]
[Site "Chess.com"]
[Date "2023.10.17"]
[Round "8"]
[White "balachess2006"]
[Black "Eloist"]
[Result "0-1"]
[WhiteElo "2584"]
[BlackElo "2462"]
[TimeControl "180+1"]
[EndTime "15:25:18 PDT"]
[Termination "Eloist won by resignation"]

1. Nf3 {[%clk 0:03:00.9]} 1... Nf6 {[%clk 0:02:59.6]} 2. c4 {[%clk 0:03:00.7]}
2... b6 {[%clk 0:02:59.7]} 3. d4 {[%clk 0:02:59.4]} 3... Bb7 {[%clk 0:02:58.2]}
4. d5 {[%clk 0:03:00]} 4... e6 {[%clk 0:02:55.3]} 5. Nc3 {[%clk 0:02:58.9]} 5...
Bb4 {[%clk 0:02:54.8]} 6. Bg5 {[%clk 0:02:57.9]} 6... h6 {[%clk 0:02:53.6]} 7.
Bh4 {[%clk 0:02:57.9]} 7... c6 {[%clk 0:02:36.8]} 8. dxe6 {[%clk 0:02:56.1]}
8... dxe6 {[%clk 0:02:29.3]} 9. Qxd8+ {[%clk 0:02:53.4]} 9... Kxd8 {[%clk
0:02:30.2]} 10. O-O-O+ {[%clk 0:02:51.9]} 10... Kc8 {[%clk 0:02:05.6]} 11. Ne5
{[%clk 0:02:40.2]} 11... Rf8 {[%clk 0:02:03.6]} 12. f3 {[%clk 0:02:21.6]} 12...
Nbd7 {[%clk 0:02:00]} 13. Nxd7 {[%clk 0:02:21.1]} 13... Nxd7 {[%clk 0:01:59.3]}
14. Ne4 {[%clk 0:02:21.3]} 14... Ne5 {[%clk 0:01:24.3]} 15. e3 {[%clk
0:02:18.5]} 15... f6 {[%clk 0:00:49.4]} 16. Bg3 {[%clk 0:02:16.2]} 16... Rd8
{[%clk 0:00:44.5]} 17. Rxd8+ {[%clk 0:02:14.7]} 17... Kxd8 {[%clk 0:00:45.4]}
18. Bxe5 {[%clk 0:02:14.8]} 18... fxe5 {[%clk 0:00:45.2]} 19. Kc2 {[%clk
0:02:15.7]} 19... Kc7 {[%clk 0:00:39.9]} 20. Bd3 {[%clk 0:02:15.5]} 20... Rd8
{[%clk 0:00:36.5]} 21. a3 {[%clk 0:02:15.2]} 21... Be7 {[%clk 0:00:36]} 22. Nc3
{[%clk 0:02:14.1]} 22... a6 {[%clk 0:00:32.5]} 23. Rd1 {[%clk 0:02:08.4]} 23...
c5 {[%clk 0:00:30.8]} 24. Be4 {[%clk 0:02:07.9]} 24... Rxd1 {[%clk 0:00:30.2]}
25. Kxd1 {[%clk 0:02:08.8]} 25... Bc8 {[%clk 0:00:30.1]} 26. Kc2 {[%clk
0:02:04.9]} 26... Bd7 {[%clk 0:00:29.9]} 27. a4 {[%clk 0:02:04.3]} 27... g5
{[%clk 0:00:29.4]} 28. b3 {[%clk 0:02:02.8]} 28... Be8 {[%clk 0:00:24.6]} 29. g4
{[%clk 0:01:57.3]} 29... h5 {[%clk 0:00:23.7]} 30. gxh5 {[%clk 0:01:57.2]} 30...
Bxh5 {[%clk 0:00:23]} 31. h3 {[%clk 0:01:58.1]} 31... Bf7 {[%clk 0:00:18.7]} 32.
Nd1 {[%clk 0:01:56.8]} 32... Bh5 {[%clk 0:00:18.6]} 33. Nf2 {[%clk 0:01:55.6]}
33... Bf6 {[%clk 0:00:18]} 34. Kd3 {[%clk 0:01:50.9]} 34... Be7 {[%clk
0:00:18.1]} 35. Ke2 {[%clk 0:01:51.2]} 35... Bf6 {[%clk 0:00:18.1]} 36. Nd3
{[%clk 0:01:51.4]} 36... Bf7 {[%clk 0:00:16.1]} 37. Nf2 {[%clk 0:01:47.4]} 37...
Bh5 {[%clk 0:00:15.6]} 38. Bd3 {[%clk 0:01:46.7]} 38... Be7 {[%clk 0:00:15.1]}
39. Bh7 {[%clk 0:01:43.1]} 39... Bf7 {[%clk 0:00:14.8]} 40. Ne4 {[%clk
0:01:41.9]} 40... Bh5 {[%clk 0:00:14.6]} 41. Nf2 {[%clk 0:01:40.5]} 41... Bf7
{[%clk 0:00:14.6]} 42. Ng4 {[%clk 0:01:40.8]} 42... Kd6 {[%clk 0:00:12.6]} 43.
Be4 {[%clk 0:01:28.1]} 43... Be8 {[%clk 0:00:12.6]} 44. Bb7 {[%clk 0:01:27.2]}
44... b5 {[%clk 0:00:11.1]} 45. cxb5 {[%clk 0:01:12.6]} 45... axb5 {[%clk
0:00:12]} 46. a5 {[%clk 0:01:13.5]} 46... Kc7 {[%clk 0:00:10.8]} 47. a6 {[%clk
0:01:13.5]} 47... Kb6 {[%clk 0:00:10.4]} 48. Nxe5 {[%clk 0:01:13]} 48... b4
{[%clk 0:00:10.1]} 49. Nc4+ {[%clk 0:01:10.8]} 49... Ka7 {[%clk 0:00:10.4]} 50.
Bc8 {[%clk 0:01:08.8]} 50... Bb5 {[%clk 0:00:10.2]} 51. Bd7 {[%clk 0:01:08.7]}
51... Bxd7 {[%clk 0:00:09.4]} 52. f4 {[%clk 0:01:05.3]} 52... gxf4 {[%clk
0:00:07.9]} 53. exf4 {[%clk 0:01:06.2]} 53... Bb5 {[%clk 0:00:08.1]} 54. Kd3
{[%clk 0:01:06.1]} 54... Bxc4+ {[%clk 0:00:08.6]} 55. Kxc4 {[%clk 0:01:04]}
55... Kxa6 {[%clk 0:00:09.5]} 56. h4 {[%clk 0:01:04.2]} 56... Kb6 {[%clk
0:00:09.5]} 57. h5 {[%clk 0:01:03]} 57... Kc6 {[%clk 0:00:09.7]} 58. h6 {[%clk
0:01:03.3]} 58... Bf6 {[%clk 0:00:09.7]} 59. h7 {[%clk 0:01:03.9]} 59... Bh8
{[%clk 0:00:09.6]} 60. Kd3 {[%clk 0:01:04.1]} 60... Kd5 {[%clk 0:00:09.8]} 61.
Ke3 {[%clk 0:01:04.6]} 61... c4 {[%clk 0:00:09.8]} 62. bxc4+ {[%clk 0:01:04.9]}
62... Kxc4 {[%clk 0:00:10.7]} 63. Ke4 {[%clk 0:01:05.6]} 63... b3 {[%clk
0:00:10.9]} 64. f5 {[%clk 0:01:05.9]} 64... exf5+ {[%clk 0:00:10.4]} 65. Kxf5
{[%clk 0:01:06.8]} 0-1

[Event "Late-Titled-Tuesday-Blitz-October-17-2023"]
[Site "Chess.com"]
[Date "2023.10.17"]
[Round "8"]
[White "dosto07"]
[Black "micke12a"]
[Result "1-0"]
[WhiteElo "2513"]
[BlackElo "2378"]
[TimeControl "180+1"]
[EndTime "15:25:21 PDT"]
[Termination "dosto07 won on time"]

1. e4 {[%clk 0:03:00.9]} 1... c5 {[%clk 0:02:59.3]} 2. Nf3 {[%clk 0:03:01.1]}
2... e6 {[%clk 0:02:59.9]} 3. c3 {[%clk 0:03:00.8]} 3... Nc6 {[%clk 0:02:57.6]}
4. d4 {[%clk 0:02:59.7]} 4... cxd4 {[%clk 0:02:57.6]} 5. cxd4 {[%clk 0:03:00.3]}
5... d5 {[%clk 0:02:57.9]} 6. e5 {[%clk 0:03:00.8]} 6... Bb4+ {[%clk 0:02:55.6]}
7. Nc3 {[%clk 0:02:59.7]} 7... Nge7 {[%clk 0:02:51]} 8. Bd3 {[%clk 0:02:59.5]}
8... h6 {[%clk 0:02:45.2]} 9. O-O {[%clk 0:02:58.9]} 9... g5 {[%clk 0:02:45.1]}
10. h3 {[%clk 0:02:58.7]} 10... Kf8 {[%clk 0:02:41.4]} 11. Be3 {[%clk 0:02:56]}
11... Nf5 {[%clk 0:02:40.6]} 12. Qb3 {[%clk 0:02:25.9]} 12... Bd7 {[%clk
0:02:28.7]} 13. Bxf5 {[%clk 0:02:22.7]} 13... exf5 {[%clk 0:02:28.5]} 14. Qxd5
{[%clk 0:02:17.8]} 14... Be6 {[%clk 0:02:13.7]} 15. Qxd8+ {[%clk 0:02:08.6]}
15... Rxd8 {[%clk 0:02:11.3]} 16. Rfd1 {[%clk 0:02:07.8]} 16... f4 {[%clk
0:02:08]} 17. d5 {[%clk 0:01:55.4]} 17... Bxc3 {[%clk 0:01:56.3]} 18. dxc6
{[%clk 0:01:51.6]} 18... Rxd1+ {[%clk 0:01:49.7]} 19. Rxd1 {[%clk 0:01:51.4]}
19... bxc6 {[%clk 0:01:46.7]} 20. Bc5+ {[%clk 0:01:49]} 20... Kg7 {[%clk
0:01:44.8]} 21. bxc3 {[%clk 0:01:49.9]} 21... Bxa2 {[%clk 0:01:41.6]} 22. Ra1
{[%clk 0:01:41.7]} 22... Bd5 {[%clk 0:01:39.6]} 23. Rxa7 {[%clk 0:01:40.5]}
23... Rb8 {[%clk 0:01:40.2]} 24. Bb4 {[%clk 0:01:29.9]} 24... Kg6 {[%clk
0:01:35.5]} 25. Nd4 {[%clk 0:01:29]} 25... h5 {[%clk 0:01:29.2]} 26. Ra6 {[%clk
0:01:25.7]} 26... Rc8 {[%clk 0:01:24.5]} 27. f3 {[%clk 0:01:23.2]} 27... g4
{[%clk 0:01:22.5]} 28. hxg4 {[%clk 0:01:22.4]} 28... hxg4 {[%clk 0:01:22.5]} 29.
fxg4 {[%clk 0:01:21.5]} 29... Kg5 {[%clk 0:01:21.9]} 30. Kf2 {[%clk 0:01:11.1]}
30... c5 {[%clk 0:01:16.6]} 31. Ra5 {[%clk 0:00:53.5]} 31... cxb4 {[%clk
0:00:41]} 32. Rxd5 {[%clk 0:00:53.1]} 32... bxc3 {[%clk 0:00:41]} 33. e6+ {[%clk
0:00:42]} 33... Kxg4 {[%clk 0:00:32.4]} 34. e7 {[%clk 0:00:18.6]} 34... c2
{[%clk 0:00:13]} 35. Ne2 {[%clk 0:00:18.3]} 35... Re8 {[%clk 0:00:08.4]} 36. Re5
{[%clk 0:00:17.9]} 36... f6 {[%clk 0:00:06.3]} 37. Re4 {[%clk 0:00:18.1]} 37...
Kg5 {[%clk 0:00:05.6]} 38. Kf3 {[%clk 0:00:17.2]} 38... f5 {[%clk 0:00:06.1]}
39. Re5 {[%clk 0:00:15.7]} 39... Kf6 {[%clk 0:00:03.3]} 40. Rc5 {[%clk
0:00:15.9]} 40... Rxe7 {[%clk 0:00:02.6]} 41. Nxf4 {[%clk 0:00:15.3]} 1-0

[Event "Late-Titled-Tuesday-Blitz-October-17-2023"]
[Site "Chess.com"]
[Date "2023.10.17"]
[Round "8"]
[White "Mikasinski"]
[Black "Perecke"]
[Result "1-0"]
[WhiteElo "2686"]
[BlackElo "2523"]
[TimeControl "180+1"]
[EndTime "15:25:24 PDT"]
[Termination "Mikasinski won by resignation"]

1. e4 {[%clk 0:03:00.9]} 1... c5 {[%clk 0:02:56.3]} 2. Nf3 {[%clk 0:03:00.8]}
2... e6 {[%clk 0:02:55.3]} 3. d4 {[%clk 0:03:01.2]} 3... cxd4 {[%clk 0:02:56.2]}
4. Nxd4 {[%clk 0:03:01.9]} 4... Nc6 {[%clk 0:02:56.2]} 5. Nc3 {[%clk 0:03:02.5]}
5... Qc7 {[%clk 0:02:55.2]} 6. Be2 {[%clk 0:03:02.5]} 6... a6 {[%clk 0:02:55.6]}
7. O-O {[%clk 0:03:03]} 7... b5 {[%clk 0:02:52.7]} 8. Nxc6 {[%clk 0:03:02.3]}
8... Qxc6 {[%clk 0:02:53.6]} 9. e5 {[%clk 0:03:01.7]} 9... Bb7 {[%clk
0:02:50.9]} 10. Bf3 {[%clk 0:03:01.8]} 10... Qc7 {[%clk 0:02:51.1]} 11. Bf4
{[%clk 0:03:01.4]} 11... Ne7 {[%clk 0:02:47.4]} 12. Ne4 {[%clk 0:03:01]} 12...
Ng6 {[%clk 0:02:44]} 13. Nd6+ {[%clk 0:02:53.5]} 13... Bxd6 {[%clk 0:02:43.5]}
14. exd6 {[%clk 0:02:54.2]} 14... Bxf3 {[%clk 0:02:43.6]} 15. Qxf3 {[%clk
0:02:53.4]} 15... Qc6 {[%clk 0:02:43]} 16. Qxc6 {[%clk 0:02:52.4]} 16... dxc6
{[%clk 0:02:40.1]} 17. Be3 {[%clk 0:02:48.5]} 17... Kd7 {[%clk 0:02:39.3]} 18.
Rad1 {[%clk 0:02:47.9]} 18... c5 {[%clk 0:02:33.2]} 19. Bxc5 {[%clk 0:02:47.4]}
19... Rhc8 {[%clk 0:02:27.2]} 20. b4 {[%clk 0:02:45.8]} 20... a5 {[%clk
0:02:27.6]} 21. a3 {[%clk 0:02:45.1]} 21... axb4 {[%clk 0:02:27.8]} 22. axb4
{[%clk 0:02:46]} 22... Ra2 {[%clk 0:02:27.3]} 23. Ra1 {[%clk 0:02:39.8]} 23...
Rca8 {[%clk 0:02:27]} 24. Rxa2 {[%clk 0:02:38.8]} 24... Rxa2 {[%clk 0:02:27.9]}
25. g3 {[%clk 0:02:34.8]} 25... Ne5 {[%clk 0:02:24.7]} 26. Kg2 {[%clk
0:02:34.7]} 26... Kc6 {[%clk 0:01:57.8]} 27. Bd4 {[%clk 0:02:24.6]} 27... Nc4
{[%clk 0:01:50]} 28. c3 {[%clk 0:02:20.7]} 28... Kxd6 {[%clk 0:01:43]} 29. Rd1
{[%clk 0:02:20.8]} 29... e5 {[%clk 0:01:39.4]} 30. Bc5+ {[%clk 0:02:18.3]} 30...
Kc7 {[%clk 0:01:34.5]} 31. Rd5 {[%clk 0:02:06]} 31... Rd2 {[%clk 0:01:26.7]} 32.
Bd6+ {[%clk 0:02:06.6]} 32... Kc6 {[%clk 0:01:25.8]} 33. Rxd2 {[%clk 0:02:07.3]}
33... Nxd2 {[%clk 0:01:26.7]} 34. Bxe5 {[%clk 0:02:08]} 34... g6 {[%clk
0:01:26.5]} 35. Bd4 {[%clk 0:02:08.6]} 35... Kd5 {[%clk 0:01:24]} 36. Bg7 {[%clk
0:01:45.5]} 36... Kc4 {[%clk 0:01:22.4]} 37. Kh3 {[%clk 0:01:40.5]} 37... Ne4
{[%clk 0:01:20.6]} 38. Kg4 {[%clk 0:01:38.2]} 38... Nxc3 {[%clk 0:01:04.5]} 39.
Kg5 {[%clk 0:01:36.5]} 39... Kxb4 {[%clk 0:00:45]} 40. Kh6 {[%clk 0:01:31.9]}
40... Kc4 {[%clk 0:00:43.3]} 41. Bf8 {[%clk 0:01:24]} 41... b4 {[%clk
0:00:28.1]} 42. Bxb4 {[%clk 0:01:08.9]} 42... Kxb4 {[%clk 0:00:29]} 43. Kxh7
{[%clk 0:01:09.6]} 43... Ne4 {[%clk 0:00:24.5]} 44. Kg7 {[%clk 0:00:58]} 44...
g5 {[%clk 0:00:08.9]} 45. f3 {[%clk 0:00:47]} 45... Nd2 {[%clk 0:00:05.7]} 46.
f4 {[%clk 0:00:46.8]} 46... gxf4 {[%clk 0:00:04.6]} 47. gxf4 {[%clk 0:00:46.7]}
47... Kc5 {[%clk 0:00:04.6]} 48. h4 {[%clk 0:00:44.7]} 48... Kd5 {[%clk
0:00:01.9]} 49. h5 {[%clk 0:00:45.2]} 49... Nf3 {[%clk 0:00:01.6]} 50. h6 {[%clk
0:00:44.8]} 50... Nd4 {[%clk 0:00:01.8]} 51. h7 {[%clk 0:00:44.8]} 51... Ne6+
{[%clk 0:00:02.2]} 1-0

[Event "Late-Titled-Tuesday-Blitz-October-17-2023"]
[Site "Chess.com"]
[Date "2023.10.17"]
[Round "8"]
[White "miraitrunks"]
[Black "PawnEatingZombie"]
[Result "1-0"]
[WhiteElo "2209"]
[BlackElo "2272"]
[TimeControl "180+1"]
[EndTime "15:25:32 PDT"]
[Termination "miraitrunks won on time"]

1. e4 {[%clk 0:02:58.3]} 1... e6 {[%clk 0:02:43.9]} 2. Nc3 {[%clk 0:02:57.8]}
2... d5 {[%clk 0:02:42.8]} 3. Nf3 {[%clk 0:02:58.7]} 3... Nf6 {[%clk 0:02:40.4]}
4. e5 {[%clk 0:02:54.6]} 4... Nfd7 {[%clk 0:02:38.7]} 5. d4 {[%clk 0:02:54.5]}
5... c5 {[%clk 0:02:38.7]} 6. dxc5 {[%clk 0:02:55.4]} 6... Nc6 {[%clk
0:02:37.8]} 7. Bf4 {[%clk 0:02:55.4]} 7... Bxc5 {[%clk 0:02:35.7]} 8. Bd3 {[%clk
0:02:54.9]} 8... a6 {[%clk 0:02:22.3]} 9. O-O {[%clk 0:02:54.4]} 9... h6 {[%clk
0:02:21.6]} 10. h4 {[%clk 0:02:50.6]} 10... O-O {[%clk 0:02:20.2]} 11. Qd2
{[%clk 0:02:49.2]} 11... Re8 {[%clk 0:01:29.8]} 12. Rfe1 {[%clk 0:02:32.2]}
12... Bf8 {[%clk 0:01:29.2]} 13. Rad1 {[%clk 0:02:29.8]} 13... b5 {[%clk
0:01:22.8]} 14. Ne2 {[%clk 0:02:02.1]} 14... b4 {[%clk 0:01:19.7]} 15. Ng3
{[%clk 0:02:00.6]} 15... a5 {[%clk 0:01:17.9]} 16. Bb5 {[%clk 0:01:41.8]} 16...
Bb7 {[%clk 0:01:17.1]} 17. Nd4 {[%clk 0:01:37.3]} 17... Nxd4 {[%clk 0:01:13.6]}
18. Qxd4 {[%clk 0:01:38.2]} 18... Qc7 {[%clk 0:01:06]} 19. Ne4 {[%clk
0:01:26.1]} 19... dxe4 {[%clk 0:00:47.2]} 20. Qxd7 {[%clk 0:01:20]} 20... Rec8
{[%clk 0:00:42.8]} 21. Rd2 {[%clk 0:01:13.7]} 21... Bd5 {[%clk 0:00:42.7]} 22.
Re3 {[%clk 0:00:46.2]} 22... Qxd7 {[%clk 0:00:42.1]} 23. Bxd7 {[%clk 0:00:46.4]}
23... Rc7 {[%clk 0:00:36.3]} 24. Ba4 {[%clk 0:00:45.7]} 24... Rac8 {[%clk
0:00:35.2]} 25. g4 {[%clk 0:00:40.1]} 25... Bc5 {[%clk 0:00:34.8]} 26. Ree2
{[%clk 0:00:38.4]} 26... Bb6 {[%clk 0:00:29.6]} 27. Bb3 {[%clk 0:00:38.5]} 27...
Rd7 {[%clk 0:00:20]} 28. Rxe4 {[%clk 0:00:36.6]} 28... Rcd8 {[%clk 0:00:04.6]}
29. Bxd5 {[%clk 0:00:35.9]} 29... Rxd5 {[%clk 0:00:05.5]} 30. Ree2 {[%clk
0:00:33.7]} 30... Rxd2 {[%clk 0:00:04.8]} 31. Rxd2 {[%clk 0:00:34.6]} 31... Rxd2
{[%clk 0:00:04.9]} 32. Bxd2 {[%clk 0:00:35.5]} 32... Kf8 {[%clk 0:00:05.1]} 33.
Kg2 {[%clk 0:00:35.9]} 33... Ke7 {[%clk 0:00:05.7]} 34. f4 {[%clk 0:00:36.2]}
34... Kd7 {[%clk 0:00:06.4]} 35. Kf3 {[%clk 0:00:36.9]} 35... Kc6 {[%clk
0:00:07]} 36. Ke4 {[%clk 0:00:36.3]} 36... Kb5 {[%clk 0:00:05.8]} 37. b3 {[%clk
0:00:36.2]} 37... a4 {[%clk 0:00:04.8]} 38. h5 {[%clk 0:00:34.6]} 38... axb3
{[%clk 0:00:04.8]} 39. axb3 {[%clk 0:00:35.5]} 39... Bf2 {[%clk 0:00:03.6]} 40.
c4+ {[%clk 0:00:30.3]} 40... bxc3 {[%clk 0:00:03.5]} 41. Bxc3 {[%clk 0:00:30.6]}
41... Bg1 {[%clk 0:00:03]} 42. f5 {[%clk 0:00:31.1]} 42... Bf2 {[%clk
0:00:01.8]} 43. Bd2 {[%clk 0:00:30.9]} 43... Bg1 {[%clk 0:00:01.8]} 44. f6
{[%clk 0:00:28.8]} 44... gxf6 {[%clk 0:00:01.1]} 45. exf6 {[%clk 0:00:29]} 1-0